[Event "Titled Tuesday Blitz May 03 Late 2022"]
[White "Gabrielian, Artur"]
[Black "Zherebtsova, Alexandra"]
[WhiteFideId "4131002"]
[BlackFideId "24129518"]
[WhiteElo "2440"]
[BlackElo "2025"]
[Result "1/2-1/2"]
[Round "01"]
[TimeControl "180+1"]
[Date "2022.05.03"]
[WhiteClock "0:00:40"]
[BlackClock "0:00:03"]

1. e4 {[%clk 0:03:00]}  e5 {[%clk 0:02:58]} 2. Nf3 {[%clk 0:03:00]}  Nc6 {[%clk 0:02:58]} 3. Bc4 {[%clk 0:02:59]}  Nf6 {[%clk 0:02:57]} 4. d3 {[%clk 0:02:59]}  h6 {[%clk 0:02:57]} 5. O-O {[%clk 0:02:58]}  d6 {[%clk 0:02:56]} 6. a4 {[%clk 0:02:55]}  g6 {[%clk 0:02:56]} 7. c3 {[%clk 0:02:52]}  Bg7 {[%clk 0:02:55]} 8. d4 {[%clk 0:02:53]}  Qe7 {[%clk 0:02:55]} 9. Re1 {[%clk 0:02:50]}  O-O {[%clk 0:02:53]} 10. Nbd2 {[%clk 0:02:49]}  Bd7 {[%clk 0:02:42]} 11. Nf1 {[%clk 0:02:48]}  Rad8 {[%clk 0:02:41]} 12. Ng3 {[%clk 0:02:47]}  Bc8 {[%clk 0:02:40]} 13. h3 {[%clk 0:02:47]}  Kh7 {[%clk 0:02:31]} 14. a5 {[%clk 0:02:46]}  a6 {[%clk 0:02:31]} 15. Be3 {[%clk 0:02:37]}  Rfe8 {[%clk 0:02:07]} 16. d5 {[%clk 0:02:37]}  Nb8 {[%clk 0:02:05]} 17. Bd3 {[%clk 0:02:37]}  Rf8 {[%clk 0:02:02]} 18. b4 {[%clk 0:02:37]}  c6 {[%clk 0:01:59]} 19. c4 {[%clk 0:02:37]}  Nbd7 {[%clk 0:01:52]} 20. dxc6 {[%clk 0:02:23]}  bxc6 {[%clk 0:01:52]} 21. b5 {[%clk 0:02:24]}  cxb5 {[%clk 0:01:47]} 22. cxb5 {[%clk 0:02:24]}  axb5 {[%clk 0:01:42]} 23. Bxb5 {[%clk 0:02:24]}  Nc5 {[%clk 0:01:40]} 24. Bxc5 {[%clk 0:02:22]}  dxc5 {[%clk 0:01:40]} 25. Qc2 {[%clk 0:02:22]}  Bb7 {[%clk 0:01:39]} 26. a6 {[%clk 0:02:22]}  Ba8 {[%clk 0:01:39]} 27. Bc4 {[%clk 0:02:21]}  Rd6 {[%clk 0:01:22]} 28. Red1 {[%clk 0:02:20]}  Rfd8 {[%clk 0:01:22]} 29. Rxd6 {[%clk 0:02:20]}  Rxd6 {[%clk 0:01:22]} 30. Rb1 {[%clk 0:02:17]}  Rd8 {[%clk 0:01:18]} 31. Rd1 {[%clk 0:02:11]}  Ne8 {[%clk 0:01:14]} 32. Rxd8 {[%clk 0:02:11]}  Qxd8 {[%clk 0:01:15]} 33. Qb3 {[%clk 0:02:09]}  Nd6 {[%clk 0:01:13]} 34. Bd5 {[%clk 0:02:08]}  Kg8 {[%clk 0:00:59]} 35. Bxa8 {[%clk 0:02:06]}  Qxa8 {[%clk 0:00:58]} 36. Qd3 {[%clk 0:02:03]}  Bf8 {[%clk 0:00:29]} 37. Nxe5 {[%clk 0:02:02]}  c4 {[%clk 0:00:29]} 38. Qd5 {[%clk 0:01:35]}  Qxa6 {[%clk 0:00:27]} 39. Nxg6 {[%clk 0:01:34]}  c3 {[%clk 0:00:11]} 40. Qb3 {[%clk 0:01:13]}  c2 {[%clk 0:00:09]} 41. Qxc2 {[%clk 0:01:11]}  fxg6 {[%clk 0:00:10]} 42. e5 {[%clk 0:01:10]}  Nf7 {[%clk 0:00:08]} 43. f4 {[%clk 0:01:07]}  Qe6 {[%clk 0:00:08]} 44. Ne4 {[%clk 0:01:06]}  Bg7 {[%clk 0:00:07]} 45. Qd3 {[%clk 0:01:03]}  Kh7 {[%clk 0:00:07]} 46. Kh2 {[%clk 0:01:03]}  Qf5 {[%clk 0:00:07]} 47. Qe3 {[%clk 0:01:00]}  h5 {[%clk 0:00:06]} 48. Ng3 {[%clk 0:00:59]}  Qe6 {[%clk 0:00:05]} 49. Qe4 {[%clk 0:00:59]}  h4 {[%clk 0:00:05]} 50. Ne2 {[%clk 0:00:59]}  Qf5 {[%clk 0:00:05]} 51. Qf3 {[%clk 0:00:53]}  Bh6 {[%clk 0:00:04]} 52. Kg1 {[%clk 0:00:52]}  Nd8 {[%clk 0:00:04]} 53. Qd5 {[%clk 0:00:40]}  Ne6 {[%clk 0:00:04]} 54. Qd7+ {[%clk 0:00:39]}  Bg7 {[%clk 0:00:04]} 55. Qd2 {[%clk 0:00:38]}  Bh6 {[%clk 0:00:04]} 56. Qd7+ {[%clk 0:00:38]}  Bg7 {[%clk 0:00:04]} 57. Kh2 {[%clk 0:00:39]}  Nxf4 {[%clk 0:00:03]} 58. Qxf5 {[%clk 0:00:38]}  gxf5 {[%clk 0:00:03]} 59. Nxf4 {[%clk 0:00:38]}  Bxe5 {[%clk 0:00:03]} 60. g3 {[%clk 0:00:39]}  hxg3+ {[%clk 0:00:01]} 61. Kxg3 {[%clk 0:00:39]}  Bxf4+ {[%clk 0:00:01]} 62. Kxf4 {[%clk 0:00:40]}  Kg6 {[%clk 0:00:02]} 63. Kg3 {[%clk 0:00:40]}  Kh5 {[%clk 0:00:02]} 64. Kf4 {[%clk 0:00:39]}  Kh4 {[%clk 0:00:02]} 65. Kxf5 {[%clk 0:00:40]}  Kxh3 {[%clk 0:00:03]} 1/2-1/2


[Site "https://www.chess.com"]

[Event "Titled Tuesday Blitz May 03 Late 2022"]
[White "Gnechko, Ruslan"]
[Black "Fernandez, Daniel Howard"]
[WhiteFideId "14135868"]
[BlackFideId "5801605"]
[WhiteElo "2289"]
[BlackElo "2466"]
[Result "0-1"]
[Round "01"]
[TimeControl "180+1"]
[Date "2022.05.03"]
[WhiteClock "0:00:37"]
[BlackClock "0:01:08"]

1. e4 {[%clk 0:03:00]}  c5 {[%clk 0:02:59]} 2. Nf3 {[%clk 0:02:59]}  d6 {[%clk 0:03:00]} 3. d4 {[%clk 0:02:59]}  cxd4 {[%clk 0:03:00]} 4. Nxd4 {[%clk 0:03:00]}  Nf6 {[%clk 0:03:01]} 5. Nc3 {[%clk 0:03:01]}  a6 {[%clk 0:03:01]} 6. Nb3 {[%clk 0:03:01]}  e6 {[%clk 0:02:49]} 7. Bg5 {[%clk 0:03:00]}  b5 {[%clk 0:02:41]} 8. a3 {[%clk 0:02:55]}  Nbd7 {[%clk 0:02:39]} 9. Qe2 {[%clk 0:02:55]}  Bb7 {[%clk 0:02:37]} 10. O-O-O {[%clk 0:02:55]}  Rc8 {[%clk 0:02:37]} 11. Kb1 {[%clk 0:02:55]}  Rxc3 {[%clk 0:02:34]} 12. bxc3 {[%clk 0:02:46]}  Qc7 {[%clk 0:02:35]} 13. Rd3 {[%clk 0:02:34]}  Nxe4 {[%clk 0:02:34]} 14. Bd2 {[%clk 0:02:34]}  d5 {[%clk 0:02:26]} 15. f3 {[%clk 0:02:30]}  Nxd2+ {[%clk 0:02:25]} 16. Qxd2 {[%clk 0:02:30]}  Bxa3 {[%clk 0:02:26]} 17. f4 {[%clk 0:02:17]}  O-O {[%clk 0:02:25]} 18. h4 {[%clk 0:02:14]}  Nf6 {[%clk 0:02:25]} 19. Rhh3 {[%clk 0:02:13]}  Ne4 {[%clk 0:02:25]} 20. Qe1 {[%clk 0:02:12]}  Qxf4 {[%clk 0:02:20]} 21. Rhf3 {[%clk 0:02:10]}  Qe5 {[%clk 0:02:15]} 22. g3 {[%clk 0:02:09]}  Rc8 {[%clk 0:02:12]} 23. Rfe3 {[%clk 0:02:02]}  b4 {[%clk 0:02:01]} 24. Bg2 {[%clk 0:01:58]}  f5 {[%clk 0:02:02]} 25. Bxe4 {[%clk 0:01:58]}  fxe4 {[%clk 0:02:02]} 26. Ka2 {[%clk 0:01:51]}  Qc7 {[%clk 0:01:39]} 27. Rd4 {[%clk 0:01:43]}  a5 {[%clk 0:01:36]} 28. Qe2 {[%clk 0:01:01]}  a4 {[%clk 0:01:23]} 29. Nd2 {[%clk 0:00:55]}  e5 {[%clk 0:01:23]} 30. Rdxe4 {[%clk 0:00:37]}  dxe4 {[%clk 0:01:23]} 31. Qb5 {[%clk 0:00:37]}  bxc3 {[%clk 0:01:18]} 32. Nxe4 {[%clk 0:00:37]}  Bb2 {[%clk 0:01:08]} 0-1


[Site "https://www.chess.com"]

[Event "Titled Tuesday Blitz May 03 Late 2022"]
[White "Goltsev, Dmitry"]
[Black "Remolar Gallen, Jose"]
[WhiteFideId "24176710"]
[BlackFideId "2215187"]
[WhiteElo "2273"]
[BlackElo "2205"]
[Result "1-0"]
[Round "01"]
[TimeControl "180+1"]
[Date "2022.05.03"]
[WhiteClock "0:01:28"]
[BlackClock "0:00:03"]

1. e4 {[%clk 0:03:00]}  c5 {[%clk 0:02:59]} 2. Nf3 {[%clk 0:03:01]}  d6 {[%clk 0:02:59]} 3. d4 {[%clk 0:03:01]}  cxd4 {[%clk 0:02:59]} 4. Nxd4 {[%clk 0:03:02]}  Nf6 {[%clk 0:03:00]} 5. Nc3 {[%clk 0:03:02]}  a6 {[%clk 0:03:00]} 6. Be2 {[%clk 0:03:02]}  e5 {[%clk 0:03:00]} 7. Nb3 {[%clk 0:03:02]}  Be7 {[%clk 0:03:00]} 8. O-O {[%clk 0:03:02]}  O-O {[%clk 0:03:00]} 9. a4 {[%clk 0:03:03]}  Be6 {[%clk 0:02:56]} 10. f4 {[%clk 0:03:03]}  Qc7 {[%clk 0:02:51]} 11. f5 {[%clk 0:03:02]}  Bc4 {[%clk 0:02:51]} 12. Bd3 {[%clk 0:03:01]}  Nbd7 {[%clk 0:02:48]} 13. Be3 {[%clk 0:03:01]}  Rac8 {[%clk 0:02:46]} 14. Nd2 {[%clk 0:03:02]}  Bxd3 {[%clk 0:02:44]} 15. cxd3 {[%clk 0:03:02]}  Nc5 {[%clk 0:02:37]} 16. Qe2 {[%clk 0:03:02]}  Qc6 {[%clk 0:02:33]} 17. g4 {[%clk 0:03:01]}  h6 {[%clk 0:02:06]} 18. h4 {[%clk 0:03:01]}  d5 {[%clk 0:01:55]} 19. g5 {[%clk 0:03:00]}  d4 {[%clk 0:01:51]} 20. gxf6 {[%clk 0:03:00]}  Bxf6 {[%clk 0:01:52]} 21. Nd5 {[%clk 0:02:57]}  dxe3 {[%clk 0:01:51]} 22. Qxe3 {[%clk 0:02:57]}  Bxh4 {[%clk 0:01:44]} 23. Kh2 {[%clk 0:02:57]}  Bg5 {[%clk 0:01:42]} 24. Qxg5 {[%clk 0:02:54]}  hxg5 {[%clk 0:01:42]} 25. Ne7+ {[%clk 0:02:54]}  Kh7 {[%clk 0:01:42]} 26. Nxc6 {[%clk 0:02:54]}  Rxc6 {[%clk 0:01:42]} 27. Nf3 {[%clk 0:02:51]}  f6 {[%clk 0:01:30]} 28. Rad1 {[%clk 0:02:44]}  Rd8 {[%clk 0:01:29]} 29. d4 {[%clk 0:02:42]}  Rcd6 {[%clk 0:01:15]} 30. Rc1 {[%clk 0:02:37]}  Nxe4 {[%clk 0:01:12]} 31. dxe5 {[%clk 0:02:36]}  fxe5 {[%clk 0:01:10]} 32. Rfe1 {[%clk 0:02:14]}  Rd3 {[%clk 0:00:40]} 33. Kg2 {[%clk 0:02:13]}  g4 {[%clk 0:00:38]} 34. Nxe5 {[%clk 0:02:09]}  Rd2+ {[%clk 0:00:37]} 35. Kg1 {[%clk 0:02:09]}  Ng3 {[%clk 0:00:35]} 36. Rc4 {[%clk 0:02:06]}  Ne2+ {[%clk 0:00:24]} 37. Kf2 {[%clk 0:02:04]}  Nd4+ {[%clk 0:00:09]} 38. Kg3 {[%clk 0:02:01]}  Nxf5+ {[%clk 0:00:09]} 39. Kxg4 {[%clk 0:02:02]}  Nh6+ {[%clk 0:00:07]} 40. Kf3 {[%clk 0:02:01]}  Rxb2 {[%clk 0:00:08]} 41. Rc7 {[%clk 0:01:59]}  Rdd2 {[%clk 0:00:07]} 42. Rg1 {[%clk 0:01:55]}  Rf2+ {[%clk 0:00:08]} 43. Ke4 {[%clk 0:01:54]}  Rg2 {[%clk 0:00:08]} 44. Rxg2 {[%clk 0:01:47]}  Rxg2 {[%clk 0:00:09]} 45. Rxb7 {[%clk 0:01:48]}  Ra2 {[%clk 0:00:09]} 46. Rb4 {[%clk 0:01:45]}  g5 {[%clk 0:00:08]} 47. Nd7 {[%clk 0:01:41]}  Kg6 {[%clk 0:00:06]} 48. Rb6+ {[%clk 0:01:40]}  Kh5 {[%clk 0:00:06]} 49. Rxa6 {[%clk 0:01:40]}  Ng4 {[%clk 0:00:04]} 50. Ra8 {[%clk 0:01:38]}  Nf2+ {[%clk 0:00:04]} 51. Kf5 {[%clk 0:01:38]}  Kh4 {[%clk 0:00:04]} 52. Ne5 {[%clk 0:01:36]}  g4 {[%clk 0:00:04]} 53. Kf4 {[%clk 0:01:36]}  Kh3 {[%clk 0:00:04]} 54. a5 {[%clk 0:01:36]}  Ra4+ {[%clk 0:00:03]} 55. Kf5 {[%clk 0:01:33]}  g3 {[%clk 0:00:03]} 56. Ng6 {[%clk 0:01:28]}  g2 {[%clk 0:00:02]} 57. Nf4+ {[%clk 0:01:28]}  Rxf4+ {[%clk 0:00:03]} 58. Kxf4 {[%clk 0:01:29]}  g1=Q {[%clk 0:00:03]} 59. Rh8+ {[%clk 0:01:29]}  Kg2 {[%clk 0:00:04]} 60. Rg8+ {[%clk 0:01:29]}  Kf1 {[%clk 0:00:04]} 61. Rxg1+ {[%clk 0:01:30]}  Kxg1 {[%clk 0:00:05]} 62. a6 {[%clk 0:01:30]}  Nd3+ {[%clk 0:00:03]} 63. Kg3 {[%clk 0:01:28]} 1-0


[Site "https://www.chess.com"]

[Event "Titled Tuesday Blitz May 03 Late 2022"]
[White "Gomez Dieguez, David"]
[Black "Al-Tarboush, Ward"]
[WhiteFideId "22223630"]
[BlackFideId "7601450"]
[WhiteElo "2115"]
[BlackElo "2276"]
[Result "1/2-1/2"]
[Round "01"]
[TimeControl "180+1"]
[Date "2022.05.03"]
[WhiteClock "0:00:20"]
[BlackClock "0:00:54"]

1. c4 {[%clk 0:03:00]}  b6 {[%clk 0:02:56]} 2. Nf3 {[%clk 0:03:00]}  Bb7 {[%clk 0:02:56]} 3. Nc3 {[%clk 0:03:01]}  Nf6 {[%clk 0:02:53]} 4. d4 {[%clk 0:03:01]}  e6 {[%clk 0:02:52]} 5. a3 {[%clk 0:03:01]}  Be7 {[%clk 0:02:50]} 6. d5 {[%clk 0:03:01]}  O-O {[%clk 0:02:50]} 7. e4 {[%clk 0:03:01]}  d6 {[%clk 0:02:50]} 8. Bd3 {[%clk 0:03:00]}  Nbd7 {[%clk 0:02:50]} 9. O-O {[%clk 0:03:00]}  Ne5 {[%clk 0:02:50]} 10. Nd4 {[%clk 0:02:53]}  c5 {[%clk 0:02:36]} 11. dxc6 {[%clk 0:02:47]}  Nxc6 {[%clk 0:02:36]} 12. Nxc6 {[%clk 0:02:31]}  Bxc6 {[%clk 0:02:37]} 13. Bf4 {[%clk 0:02:30]}  Nd7 {[%clk 0:02:34]} 14. Bc2 {[%clk 0:02:23]}  Ne5 {[%clk 0:02:34]} 15. b3 {[%clk 0:02:19]}  Ng6 {[%clk 0:02:34]} 16. Bg3 {[%clk 0:02:18]}  Qd7 {[%clk 0:02:34]} 17. Qe2 {[%clk 0:02:12]}  Rad8 {[%clk 0:02:32]} 18. Rad1 {[%clk 0:02:11]}  Qc7 {[%clk 0:02:31]} 19. Nb5 {[%clk 0:01:56]}  Bxb5 {[%clk 0:02:30]} 20. cxb5 {[%clk 0:01:56]}  Bf6 {[%clk 0:02:28]} 21. Bd3 {[%clk 0:01:54]}  Rfe8 {[%clk 0:02:24]} 22. Rc1 {[%clk 0:01:53]}  Qe7 {[%clk 0:02:23]} 23. Rc6 {[%clk 0:01:53]}  Ne5 {[%clk 0:02:18]} 24. Bxe5 {[%clk 0:01:53]}  Bxe5 {[%clk 0:02:16]} 25. a4 {[%clk 0:01:51]}  d5 {[%clk 0:02:15]} 26. exd5 {[%clk 0:01:50]}  exd5 {[%clk 0:02:15]} 27. Qc2 {[%clk 0:01:48]}  g6 {[%clk 0:02:15]} 28. g3 {[%clk 0:01:43]}  Bd4 {[%clk 0:02:13]} 29. Kg2 {[%clk 0:01:37]}  Qe5 {[%clk 0:02:03]} 30. Rc7 {[%clk 0:01:30]}  Re7 {[%clk 0:01:59]} 31. Rxe7 {[%clk 0:01:25]}  Qxe7 {[%clk 0:02:00]} 32. Rc1 {[%clk 0:01:25]}  Qf6 {[%clk 0:01:56]} 33. Qe2 {[%clk 0:01:21]}  Kg7 {[%clk 0:01:56]} 34. Rc6 {[%clk 0:01:19]}  Qe5 {[%clk 0:01:52]} 35. Qf3 {[%clk 0:01:19]}  Rd7 {[%clk 0:01:40]} 36. h4 {[%clk 0:01:18]}  h5 {[%clk 0:01:39]} 37. Qe2 {[%clk 0:01:14]}  Qxe2 {[%clk 0:01:37]} 38. Bxe2 {[%clk 0:01:14]}  Bf6 {[%clk 0:01:33]} 39. Kf3 {[%clk 0:01:12]}  d4 {[%clk 0:01:31]} 40. Bd3 {[%clk 0:01:12]}  Be5 {[%clk 0:01:25]} 41. Ke4 {[%clk 0:01:11]}  f6 {[%clk 0:01:24]} 42. Bc4 {[%clk 0:01:08]}  Re7 {[%clk 0:01:24]} 43. Re6 {[%clk 0:01:01]}  Rd7 {[%clk 0:01:20]} 44. Rc6 {[%clk 0:00:54]}  Bd6 {[%clk 0:01:17]} 45. Be6 {[%clk 0:00:46]}  Rd8 {[%clk 0:01:16]} 46. Kd3 {[%clk 0:00:46]}  Bc5 {[%clk 0:01:12]} 47. Bc4 {[%clk 0:00:41]}  Bd6 {[%clk 0:01:08]} 48. Be6 {[%clk 0:00:40]}  Bb8 {[%clk 0:01:07]} 49. Rc8 {[%clk 0:00:39]}  Rxc8 {[%clk 0:01:07]} 50. Bxc8 {[%clk 0:00:40]}  Be5 {[%clk 0:01:04]} 51. f4 {[%clk 0:00:40]}  Bd6 {[%clk 0:01:04]} 52. Kxd4 {[%clk 0:00:40]}  f5 {[%clk 0:00:59]} 53. Kd3 {[%clk 0:00:34]}  Bc5 {[%clk 0:00:58]} 54. Ke2 {[%clk 0:00:33]}  Kf6 {[%clk 0:00:58]} 55. Bd7 {[%clk 0:00:31]}  Ke7 {[%clk 0:00:58]} 56. Bc6 {[%clk 0:00:30]}  Ke6 {[%clk 0:00:58]} 57. Be8 {[%clk 0:00:23]}  Kf6 {[%clk 0:00:58]} 58. Kf3 {[%clk 0:00:22]}  Bb4 {[%clk 0:00:57]} 59. Bc6 {[%clk 0:00:21]}  Be1 {[%clk 0:00:57]} 60. Bd5 {[%clk 0:00:20]}  Ke7 {[%clk 0:00:57]} 61. Bc4 {[%clk 0:00:20]}  Kf8 {[%clk 0:00:55]} 62. Bd5 {[%clk 0:00:20]}  Ke7 {[%clk 0:00:54]} 63. Bc4 {[%clk 0:00:21]}  Kf6 {[%clk 0:00:54]} 64. Bd5 {[%clk 0:00:20]}  Ke7 {[%clk 0:00:54]} 1/2-1/2


[Site "https://www.chess.com"]

[Event "Titled Tuesday Blitz May 03 Late 2022"]
[White "Gurevich, Dmitry"]
[Black "Melkumyan, Hrant"]
[WhiteFideId "2000407"]
[BlackFideId "13302485"]
[WhiteElo "2506"]
[BlackElo "2604"]
[Result "0-1"]
[Round "01"]
[TimeControl "180+1"]
[Date "2022.05.03"]
[WhiteClock "0:00:24"]
[BlackClock "0:01:11"]

1. d4 {[%clk 0:02:59]}  Nf6 {[%clk 0:02:47]} 2. c4 {[%clk 0:02:58]}  g6 {[%clk 0:02:46]} 3. Nc3 {[%clk 0:02:57]}  Bg7 {[%clk 0:02:44]} 4. e4 {[%clk 0:02:57]}  d6 {[%clk 0:02:44]} 5. Nf3 {[%clk 0:02:57]}  O-O {[%clk 0:02:41]} 6. Be2 {[%clk 0:02:57]}  e5 {[%clk 0:02:40]} 7. O-O {[%clk 0:02:57]}  exd4 {[%clk 0:02:41]} 8. Nxd4 {[%clk 0:02:56]}  Re8 {[%clk 0:02:42]} 9. f3 {[%clk 0:02:56]}  c6 {[%clk 0:02:39]} 10. Kh1 {[%clk 0:02:56]}  Na6 {[%clk 0:02:29]} 11. Bg5 {[%clk 0:02:53]}  Nc5 {[%clk 0:02:26]} 12. Qd2 {[%clk 0:02:41]}  a5 {[%clk 0:02:23]} 13. Rad1 {[%clk 0:02:39]}  Qc7 {[%clk 0:02:19]} 14. Nb3 {[%clk 0:02:36]}  Ne6 {[%clk 0:02:12]} 15. Bh4 {[%clk 0:02:23]}  a4 {[%clk 0:02:12]} 16. Nc1 {[%clk 0:02:22]}  Nd7 {[%clk 0:02:07]} 17. Bg3 {[%clk 0:02:09]}  Nd4 {[%clk 0:02:00]} 18. Bf2 {[%clk 0:01:59]}  c5 {[%clk 0:01:51]} 19. Nd5 {[%clk 0:01:50]}  Qd8 {[%clk 0:01:51]} 20. Bd3 {[%clk 0:01:50]}  Nb8 {[%clk 0:01:46]} 21. Ne2 {[%clk 0:01:41]}  Nbc6 {[%clk 0:01:46]} 22. Nec3 {[%clk 0:01:41]}  Be6 {[%clk 0:01:39]} 23. Bg3 {[%clk 0:01:36]}  Ne5 {[%clk 0:01:37]} 24. Rfe1 {[%clk 0:01:24]}  h5 {[%clk 0:01:33]} 25. Bf1 {[%clk 0:01:13]}  h4 {[%clk 0:01:33]} 26. Bf2 {[%clk 0:01:12]}  h3 {[%clk 0:01:33]} 27. Bxd4 {[%clk 0:01:07]}  hxg2+ {[%clk 0:01:32]} 28. Bxg2 {[%clk 0:01:06]}  cxd4 {[%clk 0:01:33]} 29. Nb5 {[%clk 0:01:05]}  Nxc4 {[%clk 0:01:31]} 30. Qb4 {[%clk 0:00:56]}  Bxd5 {[%clk 0:01:31]} 31. exd5 {[%clk 0:00:53]}  Ne3 {[%clk 0:01:32]} 32. Nxd6 {[%clk 0:00:35]}  Re7 {[%clk 0:01:15]} 33. Rd3 {[%clk 0:00:24]}  Nxd5 {[%clk 0:01:11]} 0-1


[Site "https://www.chess.com"]

[Event "Titled Tuesday Blitz May 03 Late 2022"]
[White "Hakobyan, Aram"]
[Black "Voege, Tobias"]
[WhiteFideId "13306677"]
[BlackFideId "1270513"]
[WhiteElo "2557"]
[BlackElo "2297"]
[Result "1-0"]
[Round "01"]
[TimeControl "180+1"]
[Date "2022.05.03"]
[WhiteClock "0:00:15"]
[BlackClock "0:00:01"]

1. d4 {[%clk 0:02:59]}  Nf6 {[%clk 0:02:58]} 2. c4 {[%clk 0:02:59]}  e6 {[%clk 0:02:58]} 3. a3 {[%clk 0:02:59]}  b6 {[%clk 0:02:57]} 4. Nc3 {[%clk 0:02:59]}  Bb7 {[%clk 0:02:57]} 5. Nf3 {[%clk 0:02:53]}  Ne4 {[%clk 0:02:56]} 6. Qc2 {[%clk 0:02:53]}  f5 {[%clk 0:02:55]} 7. Bf4 {[%clk 0:02:51]}  Be7 {[%clk 0:02:52]} 8. e3 {[%clk 0:02:50]}  O-O {[%clk 0:02:51]} 9. h4 {[%clk 0:02:49]}  d6 {[%clk 0:02:43]} 10. Bd3 {[%clk 0:02:48]}  Nxc3 {[%clk 0:02:41]} 11. Qxc3 {[%clk 0:02:42]}  Nd7 {[%clk 0:02:39]} 12. Qc2 {[%clk 0:02:17]}  Qe8 {[%clk 0:02:18]} 13. Bg5 {[%clk 0:02:01]}  h6 {[%clk 0:01:26]} 14. Bxe7 {[%clk 0:02:00]}  Qxe7 {[%clk 0:01:27]} 15. h5 {[%clk 0:01:39]}  c5 {[%clk 0:00:56]} 16. d5 {[%clk 0:01:34]}  Ne5 {[%clk 0:00:52]} 17. Nxe5 {[%clk 0:01:32]}  dxe5 {[%clk 0:00:53]} 18. e4 {[%clk 0:01:32]}  exd5 {[%clk 0:00:44]} 19. cxd5 {[%clk 0:01:31]}  fxe4 {[%clk 0:00:21]} 20. Bxe4 {[%clk 0:01:32]}  Rad8 {[%clk 0:00:21]} 21. O-O-O {[%clk 0:01:32]}  Qf7 {[%clk 0:00:20]} 22. d6 {[%clk 0:00:44]}  Qf4+ {[%clk 0:00:19]} 23. Rd2 {[%clk 0:00:37]}  Bxe4 {[%clk 0:00:18]} 24. Qc4+ {[%clk 0:00:36]}  Kh8 {[%clk 0:00:19]} 25. g3 {[%clk 0:00:34]}  Qg5 {[%clk 0:00:13]} 26. Qxe4 {[%clk 0:00:21]}  Rxd6 {[%clk 0:00:12]} 27. f4 {[%clk 0:00:21]}  Qe7 {[%clk 0:00:08]} 28. Rxd6 {[%clk 0:00:21]}  Qxd6 {[%clk 0:00:09]} 29. fxe5 {[%clk 0:00:21]}  Qe6 {[%clk 0:00:09]} 30. Rd1 {[%clk 0:00:21]}  Re8 {[%clk 0:00:09]} 31. Rd5 {[%clk 0:00:21]}  Qh3 {[%clk 0:00:09]} 32. g4 {[%clk 0:00:21]}  Qf1+ {[%clk 0:00:08]} 33. Kc2 {[%clk 0:00:21]}  Qf2+ {[%clk 0:00:07]} 34. Kb1 {[%clk 0:00:20]}  Qf7 {[%clk 0:00:07]} 35. Rd6 {[%clk 0:00:20]}  Qe7 {[%clk 0:00:07]} 36. Rd5 {[%clk 0:00:20]}  Qe6 {[%clk 0:00:07]} 37. Qf3 {[%clk 0:00:19]}  Qe7 {[%clk 0:00:07]} 38. Qf5 {[%clk 0:00:16]}  Rf8 {[%clk 0:00:07]} 39. Qd7 {[%clk 0:00:15]}  Qg5 {[%clk 0:00:06]} 40. e6 {[%clk 0:00:14]}  Qe3 {[%clk 0:00:04]} 41. Ka2 {[%clk 0:00:13]}  c4 {[%clk 0:00:04]} 42. Rb5 {[%clk 0:00:14]}  Rf6 {[%clk 0:00:02]} 43. e7 {[%clk 0:00:14]}  Re6 {[%clk 0:00:02]} 44. Rf5 {[%clk 0:00:12]}  Rxe7 {[%clk 0:00:01]} 45. Rf8+ {[%clk 0:00:13]}  Kh7 {[%clk 0:00:01]} 46. Qf5+ {[%clk 0:00:14]}  g6 {[%clk 0:00:01]} 47. Qxg6# {[%clk 0:00:15]} 1-0


[Site "https://www.chess.com"]

[Event "Titled Tuesday Blitz May 03 Late 2022"]
[White "Hasman, Cengiz"]
[Black "Maksimovic, Bojan"]
[WhiteFideId "413364"]
[BlackFideId "14408120"]
[WhiteElo "2020"]
[BlackElo "2448"]
[Result "0-1"]
[Round "01"]
[TimeControl "180+1"]
[Date "2022.05.03"]
[WhiteClock "0:01:27"]
[BlackClock "0:00:39"]

1. d4 {[%clk 0:02:58]}  Nf6 {[%clk 0:02:59]} 2. c4 {[%clk 0:02:58]}  d6 {[%clk 0:02:58]} 3. Nc3 {[%clk 0:02:59]}  e5 {[%clk 0:02:59]} 4. e3 {[%clk 0:02:57]}  Nbd7 {[%clk 0:02:56]} 5. Nf3 {[%clk 0:02:58]}  g6 {[%clk 0:02:56]} 6. Be2 {[%clk 0:02:58]}  Bg7 {[%clk 0:02:57]} 7. O-O {[%clk 0:02:58]}  O-O {[%clk 0:02:57]} 8. h3 {[%clk 0:02:56]}  Re8 {[%clk 0:02:58]} 9. Rb1 {[%clk 0:02:54]}  e4 {[%clk 0:02:54]} 10. Nd2 {[%clk 0:02:54]}  Nf8 {[%clk 0:02:54]} 11. Qc2 {[%clk 0:02:51]}  Qe7 {[%clk 0:02:53]} 12. Nd5 {[%clk 0:02:50]}  Nxd5 {[%clk 0:02:53]} 13. cxd5 {[%clk 0:02:51]}  h5 {[%clk 0:02:50]} 14. b3 {[%clk 0:02:49]}  h4 {[%clk 0:02:48]} 15. Ba3 {[%clk 0:02:48]}  Bf5 {[%clk 0:02:47]} 16. Rbc1 {[%clk 0:02:46]}  Rac8 {[%clk 0:02:45]} 17. Bb5 {[%clk 0:02:38]}  Red8 {[%clk 0:02:40]} 18. Be2 {[%clk 0:02:25]}  Nd7 {[%clk 0:02:36]} 19. Nc4 {[%clk 0:02:25]}  b6 {[%clk 0:02:09]} 20. Nd2 {[%clk 0:02:21]}  Nf6 {[%clk 0:02:07]} 21. Ba6 {[%clk 0:02:20]}  Nxd5 {[%clk 0:02:03]} 22. Bxc8 {[%clk 0:02:19]}  Rxc8 {[%clk 0:02:04]} 23. Qc4 {[%clk 0:02:16]}  Qe6 {[%clk 0:01:54]} 24. Qa6 {[%clk 0:02:12]}  Bh6 {[%clk 0:01:42]} 25. Nc4 {[%clk 0:02:08]}  Bxh3 {[%clk 0:01:13]} 26. gxh3 {[%clk 0:02:09]}  Qxh3 {[%clk 0:01:13]} 27. Rc2 {[%clk 0:01:58]}  Qg4+ {[%clk 0:01:03]} 28. Kh1 {[%clk 0:01:48]}  Qf3+ {[%clk 0:00:55]} 29. Kg1 {[%clk 0:01:48]}  h3 {[%clk 0:00:50]} 30. Qxc8+ {[%clk 0:01:47]}  Kg7 {[%clk 0:00:44]} 31. Qxh3 {[%clk 0:01:35]}  Qxh3 {[%clk 0:00:44]} 32. Nd2 {[%clk 0:01:35]}  Nxe3 {[%clk 0:00:39]} 33. fxe3 {[%clk 0:01:29]}  Bxe3+ {[%clk 0:00:40]} 34. Rf2 {[%clk 0:01:27]}  Qg3+ {[%clk 0:00:39]} 0-1


[Site "https://www.chess.com"]